Cogmind - Beta 14 @@@ ROGUE MODE // 2024.12.17 @ 14:08:56 Player: Dosh Result: Destroyed by AK-J4Y(R) with Subdweller Machine Gun Performance ------------- Evolutions (0) 0 Regions Visited (2) 400 Robots Destroyed (31) 155 Value Destroyed (731) 731 Prototype IDs (3) 60 Alien Tech Used (0) 0 Bonus (-13) -13 TOTAL SCORE: 1333 Bonus ------- Friendly Fire -13 Cogmind --------- Core Integrity 0/250 Matter 156/300 Energy 92/100 System Corruption 8% Temperature Cool (0) Movement Treading (160) Location -10/Subcaves Parts ------- > --- POWER (1) -------- (None) > --- PROPULSION (2) --- Light Treads Improved Treads > --- UTILITY (2) ------ Large Storage Unit Core Shielding > --- WEAPON (2) ------- Autogun Subdweller Machine Gun > --- INVENTORY (15) --- Ion Engine Light Treads Light Treads Light Treads Heat Sink Huge Storage Unit High-capacity Matter Pod (161) Seismic Detector Light Armor Plating Subdweller Beam Cannon Subdweller Machine Gun Subdweller Machine Gun Subdweller Shrapnel Launcher Mining Claw Peak State ------------ > --- POWER ------------ Ion Engine > --- PROPULSION ------- Improved Treads Improved Treads > --- UTILITY ---------- Heat Sink Small Storage Unit > --- WEAPON ----------- Autogun Autogun > --- INVENTORY -------- Ion Engine Light Treads Light Treads Improved Treads Improved Treads Autogun Autogun [Rating: 12] Favorites ----------- Power Ion Engine Engine Ion Engine Propulsion Improved Treads Treads Improved Treads Utility Large Storage Unit Device Heat Sink Storage Large Storage Unit Protection Core Shielding Weapon Autogun Ballistic Gun Autogun Launcher Subdweller Shrapnel Launcher Slashing Weapon Mining Claw Build | -11 -10 -10 ------- Run | Yrd Mat Sub Slots Evolved . | . . . Power . | . . . Propulsion . | . . . Utility . | . . . Weapon . | . . . Parts Attached 37 | 6 19 12 Power 2 | 1 1 . Engine 2 | 1 1 . Core . | . . . Reactor . | . . . Propulsion 8 | 2 4 2 Treads 8 | 2 4 2 Leg . | . . . Wheel . | . . . Hover . | . . . Flight . | . . . Utility 7 | 1 4 2 Device 1 | . 1 . Storage 2 | 1 1 . Processor . | . . . Hackware . | . . . Protection 4 | . 2 2 Artifact . | . . . Weapon 20 | 2 10 8 Energy Gun . | . . . Energy Cannon . | . . . Ballistic Gun 14 | 2 6 6 Ballistic Cannon . | . . . Launcher 1 | . . 1 Special Weapon . | . . . Impact Weapon . | . . . Slashing Weapon 5 | . 4 1 Piercing Weapon . | . . . Special Melee Weapon . | . . . Unidentified Prototypes . | . . . Parts Lost 7 | . 2 5 Power 2 | . 1 1 Propulsion 3 | . 1 2 Utility . | . . . Weapon 2 | . . 2 Highest Loss Streak 3 | . 2 3 To Critical Strikes 1 | . . 1 Average Slot Usage (%) 97 | . 96 98 Engine 13 | . 14 13 Treads 27 | . 27 27 Storage 14 | . 14 14 Protection 11 | . 10 14 Ballistic Gun 26 | . 26 26 Slashing Weapon 1 | . 1 . Peak Build Rating 12 | 6 12 12 Average Rating 11 | 4 11 11 On Entrance 5 | . 6 11 Naked Turns . | . . . Heaviest Build 37 | 12 34 37 Greatest Support 46 | 40 46 46 Greatest Overweight (x) 1 | . . 1 Average Overweight (x) . | . . . Largest Inventory Capacity 15 | 8 15 15 Average Capacity 13 | 7 13 15 Most Carried 15 | 1 14 15 Average Carried 11 | . 10 14 Final Capacity 15 | 8 15 15 Final Carried 14 | 1 14 14 Class Distribution -------------------- 100% | Mutant Dominant Class ---------------- Mutant | -10/Materials Mutant | -10/Subcaves Resources | -11 -10 -10 ----------- Run | Yrd Mat Sub Matter Collected 1386 | 232 629 525 Remotely . | . . . Salvage Created 854 | . 568 286 Parts 65 | . 40 25 Haulers Intercepted 2 | . 2 . Recyclers Shooed . | . . . Parts Field Recycled . | . . . Retrieved Matter . | . . . Parts Self-Destructed 8 | . . 8 Prevented . | . . . Kills | -11 -10 -10 ------- Run | Yrd Mat Sub Combat Hostiles Destroyed 21 | . 10 11 Guns 18 | . 10 8 AOE 3 | . . 3 Classes Destroyed 9 | . 7 2 Builder 1 | . 1 . Hauler 2 | . 2 . Recycler 1 | . 1 . Operator 1 | . 1 . Turret 2 | . . 2 Watcher 3 | . 3 . Swarmer 9 | . 6 3 Grunt 4 | . 4 . Subdweller 8 | . . 8 Best Kill Streak 6 | . 6 5 Combat Bots Only 6 | . 6 3 Max Kills in Single Turn 2 | . 1 2 Gunslinging . | . . . Exploded 1 | . . 1 Melee . | . . . Uniques/NPCs Destroyed . | . . . Combat | -11 -10 -10 -------- Run | Yrd Mat Sub Hostile Shots Fired 109 | . 44 65 Missed 26 | . 8 18 Damage Taken 1663 | . 655 1008 Core 259 | . 37 222 Absorbed by Shields . | . . . Redirected to Shielding 52 | . 3 49 Regen/Repaired (Parts) 75 | . 75 . Core Remaining (%) 100 | 100 . . Volleys Fired 97 | . 48 49 Largest 2 | . 2 2 Hottest 63 | . 46 63 Shots Fired 184 | . 97 87 Gun 181 | . 97 84 Cannon . | . . . Launcher 3 | . . 3 Special . | . . . Kinetic 184 | . 97 87 Thermal . | . . . Explosive . | . . . Electromagnetic . | . . . Robot Hit Streak 21 | . 10 21 Robot Miss Streak 6 | . 6 2 Penetration Max . | . . . Secondary Targets 4 | . 3 1 Max Gunslinging Chain 1 | . 1 1 Shots Hit Robots 119 | . 52 67 Core Hits 47 | . 23 24 Critical Kills . | . . . Critical Parts Destroyed . | . . . Critical Strikes . | . . . Melee Attacks 20 | . 18 2 Impact . | . . . Slashing 20 | . 18 2 Piercing . | . . . Sneak Attacks . | . . . Combat Hostiles . | . . . Follow-up Attacks . | . . . Damage Inflicted 2337 | 2 866 1469 Guns 1905 | . 849 1056 Cannons . | . . . Explosions 413 | . . 413 Melee . | . . . Ramming 19 | 2 17 . Kinetic 2318 | . 849 1469 Thermal . | . . . Explosive . | . . . Electromagnetic . | . . . Impact . | . . . Slashing . | . . . Piercing . | . . . Highest Corruption 8 | . 8 8 Average Corruption 7 | . 6 8 Corruption Purged . | . . . Corruption Blocked . | . . . Effects 58 | . 30 28 Message Errors 7 | . 4 3 Matter Fused 13 | . 6 7 Heat Flow Errors 4 | . 2 2 Energy Discharges 11 | . 5 6 Parts Rejected 1 | . . 1 Parts Fused 1 | . 1 . Data Loss (minor) 10 | . 9 1 Data Loss (major) 3 | . . 3 Misfires 3 | . 1 2 Alerts 3 | . 2 1 Weapon Failures 2 | . . 2 Overload Shots . | . . . Overflow Damage 6 | . . 6 Projectiles . | . . . Explosions 6 | . . 6 Melee . | . . . Knockbacks . | . . . Impact . | . . . Kinetic . | . . . Secondary . | . . . Self-Inflicted Damage . | . . . Shots . | . . . Rammed 4 | 1 3 . Targets Rammed 4 | 1 3 . Kicked . | . . . Crushed . | . . . Highest Temperature 279 | . 279 194 Average Temperature 39 | . 37 62 Received Heat Transfer 231 | . 114 117 Siege Activations . | . . . Robots Corrupted . | . . . Combat Hostiles . | . . . Parts Fried . | . . . Impact Corruptions . | . . . Robots Melted . | . . . Combat Hostiles . | . . . Parts Melted . | . . . Heat Transferred . | . . . Parts Sabotaged . | . . . Parts Stolen . | . . . Parts Stripped . | . . . Power Chain Reactions . | . . . Alert | -11 -10 -10 ------- Run | Yrd Mat Sub Peak Influence 278 | . 278 . Initial . | . . . Average 65 | . 68 . Maximum Alert Level 1 | . 1 . Low Security (%) 90 | 100 90 . Level 1 9 | . 9 . Level 2 . | . . . Level 3 . | . . . Level 4 . | . . . Level 5 . | . . . High Security . | . . . Max Security . | . . . Squads Dispatched . | . . . Investigation . | . . . Extermination . | . . . Reinforcement . | . . . Assault . | . . . Garrison . | . . . Intercept . | . . . Searches Triggered . | . . . Construction Impeded . | . . . Haulers Reinforced . | . . . Active Scanning Responses . | . . . Cargo Convoy Interrupts . | . . . Stealth | -11 -10 -10 --------- Run | Yrd Mat Sub Distress Signals 2 | . 2 . Communications Jammed . | . . . Distress Signals . | . . . Times Spotted 33 | . 19 14 Peak Tracking Total 5 | . 5 4 Tactical Retreats 1 | . 1 . Traps | -11 -10 -10 ------- Run | Yrd Mat Sub Traps Triggered 2 | . 2 . Indirectly . | . . . Trap Hack Attempts . | . . . Triggered . | . . . Disarmed . | . . . Reprogrammed . | . . . Reused . | . . . Traps Extracted . | . . . Installed . | . . . Triggered . | . . . Machines | -11 -10 -10 ---------- Run | Yrd Mat Sub Machines Disabled 5 | . 2 3 Max in Single Turn 3 | . 1 3 Machines Repaired . | . . . Machines Dismantled . | . . . Machines Sabotaged . | . . . Overloaded Fab Kills . | . . . Hacking | -11 -10 -10 --------- Run | Yrd Mat Sub Machines Accessed 8 | . 8 . Terminals 7 | . 7 . Fabricators . | . . . Repair Stations 1 | . 1 . Recycling Units . | . . . Scanalyzers . | . . . Garrison Access . | . . . Total Hacks 23 | . 23 . Successful 16 | . 16 . Failed 7 | . 7 . Catastrophic . | . . . Database Lockouts . | . . . Manual 17 | . 17 . Terminals 21 | . 21 . Fabricators . | . . . Repair Stations 2 | . 2 . Recycling Units . | . . . Scanalyzers . | . . . Garrison Access . | . . . Terminal Hacks 5 | . 5 . Robot Schematic 1 | . 1 . Prototype ID Bank 2 | . 2 . Terminal Index 1 | . 1 . Unreport Threat 1 | . 1 . Fabricator Hacks . | . . . Repair Station Hacks 2 | . 2 . Scan Component 1 | . 1 . Repair 1 | . 1 . Recycling Unit Hacks . | . . . Scanalyzer . | . . . Garrison Access Hacks . | . . . Unauthorized Hacks 9 | . 9 . Terminals 9 | . 9 . Assimilate 2 | . 2 . Botnet 1 | . 1 . Operators 1 | . 1 . Skim 5 | . 5 . Fabricators . | . . . Repair Stations . | . . . Recycling Units . | . . . Scanalyzers . | . . . Garrison Access . | . . . Data Cores Recovered 1 | . 1 . Used . | . . . Hacking Detections 7 | . 7 . Full Trace Events . | . . . Feedback Events . | . . . Feedback Blocked . | . . . Robot Schematics Acquired 1 | . 1 . Robots Built . | . . . Authchips . | . . . Time . | . . . Total Robot Build Rating . | . . . Part Schematics Acquired . | . . . Parts Built . | . . . Authchips . | . . . Time . | . . . Total Part Build Rating . | . . . Parts Repaired 1 | . 1 . Time 32 | . 32 . Parts Recycled . | . . . Recycled Matter . | . . . Retrieved Matter . | . . . Retrieved Components . | . . . Parts Scanalyzed . | . . . Part Schematics Acquired . | . . . Parts Damaged . | . . . Bothacking | -11 -10 -10 ------------ Run | Yrd Mat Sub Used RIF Installer . | . . . Robots Hacked . | . . . Non-combat . | . . . Combat . | . . . Robot Hacks Applied . | . . . Relay Couplers Released . | . . . Fabnet Peak Effective % . | . . . Robots Rewired . | . . . Allies Hacked . | . . . Hacks Repelled . | . . . Allies | -11 -10 -10 -------- Run | Yrd Mat Sub Total Allies 1 | . 1 . Largest Group 1 | . 1 1 Highest-Rated Group 10 | . 10 10 Highest-Rated Ally 10 | . 10 10 Total Orders . | . . . Ally Attacks . | . . . Total Damage . | . . . Kills . | . . . Allies Corrupted . | . . . Allies Melted . | . . . Intel | -11 -10 -10 ------- Run | Yrd Mat Sub Robot Analysis Total . | . . . Derelict Logs Recovered 2 | . . 2 Drone Launches . | . . . Drone Recoveries . | . . . Exploration | -11 -10 -10 ------------- Run | Yrd Mat Sub Turns Passed 2386 | 72 1562 752 Spaces Moved 1188 | 40 793 355 Core 2 | 2 . . Treads 1186 | 38 793 355 Legs . | . . . Wheels . | . . . Hover . | . . . Flight . | . . . Fastest Speed 50 | 50 160 160 Average Speed 159 | 154 160 160 Slowest Speed 240 | 160 160 240 Overloaded Moves . | . . . Propulsion Burnouts . | . . . Robots Hopped . | . . . Cave-ins Triggered 1 | . 1 . Exploration Rate (%) 38 | 4 88 23 Regions Visited 2 Branch Regions 1 Pre-discovered Areas 1 | . 1 . Known Exits Taken . | . . . Unknown Exits Taken 2 | 1 1 . Scrap Searched 3 | . . 3 Spaces Dug 4 | . 4 . Terrain Destroyed 28 | . 4 24 Melee 4 | . 4 . Projectile . | . . . AOE 24 | . . 24 Terrain Rammed . | . . . Walls Destroyed . | . . . Machines Disabled . | . . . Actions | -11 -10 -10 --------- Run | Yrd Mat Sub Total 1471 | 47 967 457 Wait 100 | . 68 32 Move 1186 | 39 792 355 Hop . | . . . Pick Up 20 | 1 15 4 Fast Attach 10 | 6 2 2 Attach 6 | . 3 3 Detach . | . . . Swap 21 | . 14 7 Drop 7 | . 4 3 Fire 97 | . 48 49 Melee 20 | . 18 2 Ram . | . . . Kick . | . . . Crush 4 | 1 3 . Escape Stasis . | . . . Rewire . | . . . Trap . | . . . Miscellaneous . | . . . Route ------- -11/Scrapyard -10/Materials (discovered 4 exits: [*Mat x2] / [*Min] / [*Sub]) -10/Subcaves (discovered 2 exits: Mat / *Rec) History --------- Turn | Location | Event 32 | -11/Scrapyard | Discovered new exit (range 16) 73 | -11/Scrapyard | Entered Materials 307 | -10/Materials | Build established: Mutant 413 | -10/Materials | Discovered new exit (range 14) 550 | -10/Materials | Discovered new exit (range 8) 677 | -10/Materials | Crushed by falling debris 1195 | -10/Materials | Discovered new exit (range 15) 1267 | -10/Materials | Learned location of Subcaves (-10) 1327 | -10/Materials | Loaded intel: 10 trap records 1347 | -10/Materials | Learned Storage trap positions 1349 | -10/Materials | Learned location of 2 exits from Mines 1358 | -10/Materials | Learned Materials stockpile data 1429 | -10/Materials | Repaired Imp. Treads 1627 | -10/Materials | Discovered new exit (range 3) 1635 | -10/Materials | Entered Subcaves 1635 | -10/Subcaves | Accompanied by 1 ally 1677 | -10/Subcaves | Identified exit to Recycling 1688 | -10/Subcaves | Disturbed a concealed Subdweller 1917 | -10/Subcaves | Lost 3 parts (1n2w) 2187 | -10/Subcaves | Core integrity fell below 50% 2329 | -10/Subcaves | Identified exit to Materials 2372 | -10/Subcaves | Core integrity fell below 20% 2387 | -10/Subcaves | Destroyed by AK-J4Y(R) with Subdweller Machine Gun Last Messages --------------- 02219_ System corrupted: Matter fused (-8). 02220_ PU-GNH(R) destroyed. 02229_ C9-WMY(R) destroyed. 02233_ Acquired 49 matter. 02234_ System corrupted: Energy discharge (-100). 02235_ Acquired 10 matter. 02236_ Acquired 14 matter. 02312_ System corrupted: Energy discharge (-90). 02329_ Acquired derelict log, extracted data. Loading 1 Subcaves exit... 02346_ System corrupted: Substantial component data lost. 02361_ System corrupted: FCS attempts to trigger Sub. Machine Gun. 02361_ System corrupted: Sub. Machine Gun misfires. 02370_ Ion Engine destroyed. 02372_ Critical hit (Destroy). 02372_ Imp. Treads destroyed. 02375_ 6E-LWW(R) destroyed. 02375_ Switching to secondary target: AK-J4Y(R). 02378_ Acquired 22 matter. 02381_ System corrupted: Heat flow error (+239). Map ----- +----------------------------------------------------+ | ### # #?## ###?????????????????? | | ??###### ### #???????????????????? | | ? #?????# # &*## #???????????????????? | | ? ?????# ## ] ##??????????????????? | | ?? ?????## ##! [ ##?????????????????? | | ??# ??????# ##????????????????? | | ??# ?????##% ###??????????????? | | ?## ?????# ##?????????????? | | ?# ##??## ### #?????????????? | | ?# #### #?## #?????????????? | | ?# #??# #?????????????? | | ?# #####??### ##?????????????? | | ?## #" ##????????# #??????????????? | | ??###### #???????### ##?????????????? | | ??????# #????#### ## #?????????????? | | ??????# #????# #?????????????? | | ??????## #????# #?????????????? | | ???????# #????# # # #?????????????? | | ??????# "#????# #### #?????????????? | | ??????## " > ##????# ########?????????????? | | ??????? #############??# # ##???????????????? | | ?????? ??????????#""#### #???????????????? | | ????? ??????????""" ##"" ##??????????????? | | ????? ??????????#"" """ ## "##?????????????? | | ?????? ????????????#"""" ## ""^#?????????????? | | ???????????????????##"" @ """ ##?????????????? | | ????????????????????##"## "" ##??????????????? | | ?????????????????????##!#R#" ##??????????????? | | ??????????????????????## "" ^ #??????????????? | | ??????????????????????#"&"# #??????????????? | | ???????????????????""""" "## #??????????????? | | ???????????????????""""" "#?### #?????????????? | | ??????????????????? """""" ????###?????????????? | | ??????????????????? " ???????????????????? | | ???????????????????? ??????????????????? | | ??????????????????? ??????????????????? | | ???????????????????? ###?????????????????? | | ???????????????????? #???????????????????? | | ???????????????????? #???????????????????? | | ????????????????????? #???????????????????? | | ????????????????????? #???????????????????? | | ????????????????????? ## #???????????????????? | | ??????????????????????##??#????????????????????? | | ???????????????????????????????????????????????? | | ???????????????????????????????????????????????? | | ???????????????????????????????????????????????? | | ???????????????????????????????????????????????? | | ???????????????????????????????????????????????? | | ???????????????????????????????????????????????? | | ???????????????????????????????????????????????? | +----------------------------------------------------+ Best States ------------- Heat Dissipation 35 Energy Generation 10 Energy Capacity 250 Matter Stores 300 Matter Capacity 300 Sight Range 16 Terrain Scan Density 10 Armor Coverage 150 Core Shielding 20 Evasion (%) 40 Recoil Reduction 2 Item Schematics ----------------- None Robot Schematics ------------------ M-13 Machinist | -10/Materials | Hacked Fabricated ------------ Nothing Alien Tech Used ----------------- None Achievements -------------- None Challenges ------------ None Game ------ Seed FlyingMicroAutobeam Manual? 0 Play Time 00:12:02 Cumulative 551.1 hours Start 2024.12.17 @ 13:59:34 End 2024.12.17 @ 14:08:56 Sessions 1 Manual Loads 0 Difficulty Rogue Special Mode None Game No. 317 Rogue 317 Adventurer 0 Explorer 0 Win Type - Total 43 Types 29/3/5/1/1/0/2/1/1 Lore% 84 Gallery% 86 Achievement% 86 Wizard Run 0 Options --------- Layout 0 ASCII 0 Keyboard 1 Movement Numpad Keybinds 0 Fullscreen 2 Font 18/SmallcapsGlow Map View 76x50 Zoom Use 0% Tactical HUD 1 Map Filters NONE Filters NONE Steam 1 RUN: 827b0af0-8f50-4d15-8e08-2d21eac97718